[Event "69th RUS-ch Women Higher League 2019"]
[Site "Yaroslavl"]
[Date "2019.07.01"]
[Round "5.17"]
[White "Paramzina, Anastasya"]
[Black "Bulatova, Kamaliya"]
[Result "0-1"]
[ECO "C07"]
[WhiteElo "2300"]
[BlackElo "2102"]
[Annotator "NA"]
[PlyCount "82"]
[EventDate "2019.06.27"]
[EventType "swiss"]
[EventCountry "RUS"]
[SourceTitle "playchess.com"]
[Source "ChessBase"]
[SourceQuality "1"]
[TimeControl "40/5400+30:1800+30"]

1. e4 {[%emt 0:00:00]} e6 {[%emt 0:00:00]} 2. d4 {[%emt 0:00:00]} d5 {[%emt 0:00:00]} 3. Nd2 {[%emt 0:00:00]} c5 {[%emt 0:00:00]} 4. exd5 {[%emt 0:00:38]} Qxd5 {[%emt 0:00:00]} 5. Ngf3 {[%emt 0:00:43]} cxd4 {[%emt 0:00:00]} 6. Bc4 {[%emt 0:00:12]} Qd6 {[%emt 0:00:00]} 7. O-O {[%emt 0:01:03]} Nf6 {[%emt 0:00:04]} 8. Nb3 {[%emt 0:00:05]} Nc6 {[%emt 0:00:16]} 9. Nbxd4 {[%emt 0:00:13]} Nxd4 {[%emt 0:00:06]} 10. Nxd4 {[%emt 0:00:05]} Be7 {[%emt 0:00:35]} 11. b3 {[%emt 0:01:10]} a6 {[%emt 0:01:44]} 12. a4 {[%emt 0:00:09]} Qc7 {[%emt 0:01:41]} 13. Bb2 {[%emt 0:01:12]} O-O {[%emt 0:04:14]} 14. Qe2 {[%emt 0:07:22]} b6 {[%emt 0:08:37]} 15. Rfe1 {[%emt 0:02:05]} Bb4 {[%emt 0:11:47]} 16. Red1 {[%emt 0:01:55]} Bb7 {[%emt 0:01:01]} 17. Rd3 {[%emt 0:04:49]} e5 {[%emt 0:13:38]} 18. c3 {[%emt 0:16:40]} Bc5 {[%emt 0:05:23]} 19. Nc2 {[%emt 0:00:09]} Qc6 {[%emt 0:02:15]} 20. Rf3 {[%emt 0:00:12]} Qc8 {[%emt 0:06:22]} 21. Rxf6 {[%emt 0:04:55]} gxf6 {[%emt 0:00:46]} 22. b4 {[%emt 0:00:03]} Qc6 {[%emt 0:06:00]} 23. Qf1 {[%emt 0:02:42]} Bd6 {[%emt 0:05:10]} 24. Ne3 {[%emt 0:00:07]} Kh8 {[%emt 0:00:18]} 25. Qd1 {[%emt 0:03:41]} Rad8 {[%emt 0:02:23]} 26. Qh5 {[%emt 0:00:18]} Qe4 {[%emt 0:01:47]} 27. Bxf7 {[%emt 0:05:50]} Rd7 {[%emt 0:10:25]} 28. Bb3 {[%emt 0:00:11]} Rg7 {[%emt 0:03:00]} 29. Qh3 {[%emt 0:00:51]} a5 {[%emt 0:05:56]} 30. Rd1 {[%emt 0:08:31]} axb4 {[%emt 0:01:48]} 31. Bc2 {[%emt 0:05:04]} Qc6 {[%emt 0:01:13]} 32. c4 {[%emt 0:00:06]} Rfg8 {[%emt 0:01:11]} 33. Kf1 {[%emt 0:01:13]} Bc5 {[%emt 0:01:38]} 34. Nd5 {[%emt 0:00:06]} Bd4 {[%emt 0:00:17]} 35. Bxd4 {[%emt 0:00:56]} Qxc4+ {[%emt 0:00:07]} 36. Bd3 {[%emt 0:00:27]} Qxd5 {[%emt 0:00:31]} 37. Bxb6 {[%emt 0:00:07]} Qxg2+ {[%emt 0:03:31]} 38. Qxg2 {[%emt 0:00:05]} Bxg2+ {[%emt 0:00:04]} 39. Ke2 {[%emt 0:00:03]} e4 {[%emt 0:00:05]} 40. Bc4 {[%emt 0:00:00]} Bf3+ {[%emt 0:00:00]} 41. Kd2 {[%emt 0:00:22]} Rd7+ {[%emt 0:00:23]} 0-1

[Event "69th RUS-ch Women Higher League 2019"]
[Site "Yaroslavl"]
[Date "2019.07.01"]
[Round "5.18"]
[White "Schepetkova, Margarita"]
[Black "Kabanova, Ekaterina"]
[Result "0-1"]
[ECO "E01"]
[WhiteElo "2241"]
[BlackElo "2099"]
[Annotator "NA"]
[PlyCount "72"]
[EventDate "2019.06.27"]
[EventType "swiss"]
[EventCountry "RUS"]
[SourceTitle "playchess.com"]
[Source "ChessBase"]
[SourceQuality "1"]
[TimeControl "40/5400+30:1800+30"]

1. d4 {[%emt 0:00:00]} Nf6 {[%emt 0:01:14]} 2. c4 {[%emt 0:00:00]} e6 {[%emt 0:00:08]} 3. g3 {[%emt 0:00:00]} d5 {[%emt 0:00:37]} 4. Bg2 {[%emt 0:00:00]} Bb4+ {[%emt 0:01:11]} 5. Nd2 {[%emt 0:00:01]} O-O {[%emt 0:00:28]} 6. Ngf3 {[%emt 0:00:56]} b6 {[%emt 0:03:36]} 7. O-O {[%emt 0:03:31]} Bb7 {[%emt 0:01:21]} 8. Qa4 {[%emt 0:09:41]} Bd6 {[%emt 0:02:42]} 9. Ne5 {[%emt 0:07:44]} c5 {[%emt 0:04:09]} 10. cxd5 {[%emt 0:02:52]} Bxd5 {[%emt 0:06:43]} 11. e4 {[%emt 0:05:27]} Bb7 {[%emt 0:00:25]} 12. Nec4 {[%emt 0:00:11]} Be7 {[%emt 0:03:06]} 13. dxc5 {[%emt 0:04:54]} Bxc5 {[%emt 0:00:26]} 14. b4 {[%emt 0:06:53]} Bd4 {[%emt 0:07:31]} 15. Rb1 {[%emt 0:00:14]} Qc7 {[%emt 0:08:38]} 16. Qd1 {[%emt 0:06:23]} Rd8 {[%emt 0:03:56]} 17. Qe2 {[%emt 0:00:08]} e5 {[%emt 0:05:11]} 18. a4 {[%emt 0:13:02]} Na6 {[%emt 0:02:54]} 19. Ba3 {[%emt 0:01:03]} Rac8 {[%emt 0:01:38]} 20. Bh3 {[%emt 0:02:51]} Rb8 {[%emt 0:00:54]} 21. Rfc1 {[%emt 0:10:05]} Qe7 {[%emt 0:00:41]} 22. Kh1 {[%emt 0:00:40]} Qe8 {[%emt 0:01:21]} 23. f3 {[%emt 0:00:48]} h5 {[%emt 0:09:15]} 24. Nb3 {[%emt 0:07:15]} h4 {[%emt 0:01:45]} 25. b5 {[%emt 0:00:03]} Nc5 {[%emt 0:00:29]} 26. Bxc5 {[%emt 0:02:26]} bxc5 {[%emt 0:01:26]} 27. Nca5 {[%emt 0:00:32]} hxg3 {[%emt 0:00:12]} 28. hxg3 {[%emt 0:00:34]} Nh5 {[%emt 0:00:45]} 29. Kg2 {[%emt 0:00:21]} Qe7 {[%emt 0:01:11]} 30. Nc6 {[%emt 0:02:47]} Qg5 {[%emt 0:00:30]} 31. Bg4 {[%emt 0:00:03]} Bxc6 {[%emt 0:02:47]} 32. bxc6 {[%emt 0:00:13]} Rxb3 {[%emt 0:00:10]} 33. c7 {[%emt 0:05:49]} Rc8 {[%emt 0:02:42]} 34. Bxh5 {[%emt 0:01:49]} Rxc7 {[%emt 0:01:55]} 35. f4 Rxg3+ {[%emt 0:00:44]} 36. Kh2 {[%emt 0:03:41]} Qh4# {[%emt 0:00:08]} 0-1

[Event "69th RUS-ch Women Higher League 2019"]
[Site "Yaroslavl"]
[Date "2019.07.01"]
[Round "5.19"]
[White "Faizutdinova, Diana"]
[Black "Khokhlova, Daria"]
[Result "0-1"]
[ECO "A13"]
[WhiteElo "2061"]
[BlackElo "2234"]
[Annotator "NA"]
[PlyCount "66"]
[EventDate "2019.06.27"]
[EventType "swiss"]
[EventCountry "RUS"]
[SourceTitle "playchess.com"]
[Source "ChessBase"]
[SourceQuality "1"]
[TimeControl "40/5400+30:1800+30"]

1. c4 {[%emt 0:00:00]} e6 {[%emt 0:00:00]} 2. e4 {[%emt 0:00:30]} d5 {[%emt 0:00:00]} 3. exd5 {[%emt 0:00:04]} exd5 {[%emt 0:00:00]} 4. d4 {[%emt 0:00:07]} Nf6 {[%emt 0:00:54]} 5. Bd3 {[%emt 0:00:32]} Be7 {[%emt 0:01:40]} 6. Ne2 {[%emt 0:00:10]} O-O {[%emt 0:00:38]} 7. O-O {[%emt 0:00:39]} dxc4 {[%emt 0:02:12]} 8. Bxc4 {[%emt 0:00:06]} a6 {[%emt 0:01:07]} 9. Nbc3 {[%emt 0:02:49]} b5 {[%emt 0:01:16]} 10. Bb3 {[%emt 0:00:25]} Bb7 {[%emt 0:00:36]} 11. Nf4 {[%emt 0:16:56]} Nbd7 {[%emt 0:07:24]} 12. Ncd5 {[%emt 0:09:04]} Bd6 {[%emt 0:03:37]} 13. Qf3 {[%emt 0:17:50]} Nxd5 {[%emt 0:03:17]} 14. Nxd5 {[%emt 0:02:53]} Nb6 {[%emt 0:05:39]} 15. Ne7+ {[%emt 0:03:49]} Qxe7 {[%emt 0:02:12]} 16. Qxb7 {[%emt 0:00:05]} Qh4 {[%emt 0:02:24]} 17. g3 {[%emt 0:13:15]} Qxd4 {[%emt 0:08:21]} 18. Be3 {[%emt 0:01:56]} Qxb2 {[%emt 0:01:54]} 19. Rad1 {[%emt 0:01:50]} Rab8 {[%emt 0:10:40]} 20. Qxa6 {[%emt 0:09:50]} Qe5 {[%emt 0:12:17]} 21. Bd4 {[%emt 0:00:22]} Qf5 {[%emt 0:01:51]} 22. Qa5 {[%emt 0:00:13]} Rfc8 {[%emt 0:03:46]} 23. Qc3 {[%emt 0:00:37]} b4 {[%emt 0:01:37]} 24. Qc6 {[%emt 0:05:25]} Bf8 {[%emt 0:05:06]} 25. Rfe1 {[%emt 0:01:45]} Qg6 {[%emt 0:03:08]} 26. Rc1 {[%emt 0:04:08]} Qxc6 {[%emt 0:01:29]} 27. Rxc6 {[%emt 0:00:05]} Nd7 {[%emt 0:02:44]} 28. h4 {[%emt 0:06:07]} Bd6 {[%emt 0:01:09]} 29. Kg2 {[%emt 0:00:08]} Re8 {[%emt 0:01:24]} 30. Rxe8+ {[%emt 0:00:04]} Rxe8 {[%emt 0:00:00]} 31. Be3 {[%emt 0:00:38]} Ne5 {[%emt 0:01:12]} 32. Ra6 {[%emt 0:00:04]} Kf8 {[%emt 0:03:38]} 33. Kh3 {[%emt 0:02:59]} Rd8 {[%emt 0:01:40]} 0-1

[Event "69th RUS-ch Women Higher League 2019"]
[Site "Yaroslavl"]
[Date "2019.07.01"]
[Round "5.20"]
[White "Lysenko, Margarita"]
[Black "Loskutova, Viktoriya"]
[Result "1-0"]
[ECO "E20"]
[WhiteElo "2224"]
[BlackElo "2019"]
[Annotator "NA"]
[PlyCount "71"]
[EventDate "2019.06.27"]
[EventType "swiss"]
[EventCountry "RUS"]
[SourceTitle "playchess.com"]
[Source "ChessBase"]
[SourceQuality "1"]
[TimeControl "40/5400+30:1800+30"]

1. d4 {[%emt 0:00:00]} Nf6 {[%emt 0:00:00]} 2. c4 {[%emt 0:00:00]} e6 {[%emt 0:00:00]} 3. Nc3 {[%emt 0:00:00]} Bb4 {[%emt 0:00:00]} 4. f3 {[%emt 0:00:17]} c5 {[%emt 0:00:00]} 5. d5 {[%emt 0:00:08]} d6 {[%emt 0:00:05]} 6. e4 {[%emt 0:00:11]} b5 {[%emt 0:00:08]} 7. Bd2 {[%emt 0:00:21]} a6 {[%emt 0:00:13]} 8. a4 {[%emt 0:00:24]} exd5 {[%emt 0:40:24]} 9. cxd5 {[%emt 0:02:05]} bxa4 {[%emt 0:02:45]} 10. Rxa4 {[%emt 0:04:47]} Nbd7 {[%emt 0:04:31]} 11. Ra1 {[%emt 0:12:16]} O-O {[%emt 0:03:27]} 12. Nh3 {[%emt 0:04:29]} Ne5 {[%emt 0:10:19]} 13. Nf2 {[%emt 0:00:28]} a5 {[%emt 0:10:51]} 14. Be2 {[%emt 0:03:31]} Nfd7 {[%emt 0:02:44]} 15. f4 {[%emt 0:08:34]} Ng6 {[%emt 0:00:12]} 16. O-O {[%emt 0:00:53]} Nb6 {[%emt 0:03:45]} 17. Nh1 {[%emt 0:37:44]} f5 {[%emt 0:07:16]} 18. Ng3 {[%emt 0:03:09]} fxe4 {[%emt 0:03:38]} 19. Ncxe4 {[%emt 0:00:27]} Ne7 {[%emt 0:03:11]} 20. Ng5 {[%emt 0:07:38]} Nf5 {[%emt 0:03:46]} 21. Bd3 {[%emt 0:04:23]} h6 {[%emt 0:01:44]} 22. Bxf5 {[%emt 0:04:04]} Bxf5 {[%emt 0:00:05]} 23. Ne6 {[%emt 0:00:09]} Bxe6 {[%emt 0:00:05]} 24. dxe6 {[%emt 0:00:03]} d5 {[%emt 0:01:43]} 25. f5 {[%emt 0:00:26]} Nc4 {[%emt 0:00:46]} 26. Bc1 {[%emt 0:01:05]} Ne5 {[%emt 0:00:46]} 27. Bf4 {[%emt 0:01:00]} Nc6 {[%emt 0:00:14]} 28. Qg4 {[%emt 0:00:44]} Kh8 {[%emt 0:00:38]} 29. Nh5 {[%emt 0:00:46]} Rg8 {[%emt 0:00:36]} 30. Qh3 {[%emt 0:03:16]} Ra7 {[%emt 0:00:12]} 31. Rad1 {[%emt 0:00:34]} d4 {[%emt 0:00:43]} 32. Qf3 {[%emt 0:00:27]} Ne7 {[%emt 0:00:34]} 33. Be5 {[%emt 0:01:27]} Qd5 {[%emt 0:00:25]} 34. Qf4 {[%emt 0:00:29]} Kh7 {[%emt 0:00:12]} 35. Bxg7 {[%emt 0:00:23]} Nxf5 {[%emt 0:00:16]} 36. Nf6+ {[%emt 0:00:18]} 1-0

[Event "69th RUS-ch Women Higher League 2019"]
[Site "Yaroslavl"]
[Date "2019.07.01"]
[Round "5.21"]
[White "Tokmakova, Ulyana"]
[Black "Utiatskaja, Irina"]
[Result "1/2-1/2"]
[ECO "B20"]
[WhiteElo "1878"]
[BlackElo "2192"]
[Annotator "NA"]
[PlyCount "80"]
[EventDate "2019.06.27"]
[EventType "swiss"]
[EventCountry "RUS"]
[SourceTitle "playchess.com"]
[Source "ChessBase"]
[SourceQuality "1"]
[TimeControl "40/5400+30:1800+30"]

1. e4 {[%emt 0:00:00]} c5 {[%emt 0:01:30]} 2. b3 {[%emt 0:00:00]} d6 {[%emt 0:00:48]} 3. Bb2 {[%emt 0:00:00]} Nf6 {[%emt 0:00:09]} 4. Nc3 {[%emt 0:00:07]} g6 {[%emt 0:00:12]} 5. Bb5+ {[%emt 0:10:46]} Nc6 {[%emt 0:01:35]} 6. Nd5 {[%emt 0:03:36]} Bg7 {[%emt 0:00:11]} 7. Nxf6+ {[%emt 0:02:07]} exf6 {[%emt 0:00:20]} 8. Ne2 {[%emt 0:00:36]} O-O {[%emt 0:00:28]} 9. O-O {[%emt 0:00:16]} Re8 {[%emt 0:06:00]} 10. Ng3 {[%emt 0:08:52]} h5 {[%emt 0:06:32]} 11. Re1 {[%emt 0:03:40]} a6 {[%emt 0:08:47]} 12. Bc4 {[%emt 0:04:22]} Bg4 {[%emt 0:16:44]} 13. f3 {[%emt 0:02:54]} Be6 {[%emt 0:00:49]} 14. Nf1 {[%emt 0:04:09]} Ne5 {[%emt 0:15:32]} 15. Ne3 {[%emt 0:05:15]} Nxc4 {[%emt 0:03:23]} 16. bxc4 {[%emt 0:00:35]} Qd7 {[%emt 0:00:25]} 17. Nd5 {[%emt 0:04:05]} Bxd5 {[%emt 0:00:42]} 18. cxd5 {[%emt 0:02:12]} f5 {[%emt 0:02:52]} 19. Bxg7 {[%emt 0:04:40]} Kxg7 {[%emt 0:00:25]} 20. d4 {[%emt 0:01:47]} fxe4 {[%emt 0:01:00]} 21. fxe4 {[%emt 0:01:16]} cxd4 {[%emt 0:04:13]} 22. Qxd4+ {[%emt 0:00:08]} Kg8 {[%emt 0:00:27]} 23. c4 {[%emt 0:02:38]} Rac8 {[%emt 0:04:24]} 24. e5 {[%emt 0:13:39]} dxe5 {[%emt 0:03:19]} 25. Rxe5 {[%emt 0:00:45]} Rxe5 {[%emt 0:00:28]} 26. Qxe5 {[%emt 0:00:05]} Rxc4 {[%emt 0:00:25]} 27. Rd1 {[%emt 0:04:42]} Qg4 {[%emt 0:06:05]} 28. Qe8+ {[%emt 0:03:17]} Kg7 {[%emt 0:00:55]} 29. Qe5+ {[%emt 0:00:59]} f6 {[%emt 0:08:29]} 30. Qe7+ {[%emt 0:02:30]} Kh6 {[%emt 0:00:33]} 31. Qe3+ {[%emt 0:01:07]} Qg5 {[%emt 0:03:38]} 32. Qe7 {[%emt 0:04:22]} Qf4 {[%emt 0:01:54]} 33. d6 {[%emt 0:02:33]} Rc1 {[%emt 0:02:21]} 34. Rxc1 {[%emt 0:01:55]} Qxc1+ {[%emt 0:00:04]} 35. Kf2 {[%emt 0:00:08]} Qd2+ {[%emt 0:00:54]} 36. Kf3 {[%emt 0:00:46]} Qd5+ {[%emt 0:00:03]} 37. Kf2 {[%emt 0:01:36]} Qd2+ {[%emt 0:00:27]} 38. Kf3 {[%emt 0:00:08]} Qd5+ {[%emt 0:00:09]} 39. Kf2 {[%emt 0:00:12]} Qd2+ {[%emt 0:00:05]} 40. Kf3 {[%emt 0:00:00]} Qd5+ {[%emt 0:00:00] Ke4} 1/2-1/2

[Event "69th RUS-ch Women Higher League 2019"]
[Site "Yaroslavl"]
[Date "2019.07.01"]
[Round "5.22"]
[White "Chkhan, Viktoria"]
[Black "Yakushina, Ekaterina"]
[Result "1/2-1/2"]
[ECO "D76"]
[WhiteElo "2141"]
[BlackElo "1783"]
[Annotator "NA"]
[PlyCount "83"]
[EventDate "2019.06.27"]
[EventType "swiss"]
[EventCountry "RUS"]
[SourceTitle "playchess.com"]
[Source "ChessBase"]
[SourceQuality "1"]
[TimeControl "40/5400+30:1800+30"]

1. d4 {[%emt 0:00:00]} Nf6 {[%emt 0:03:11]} 2. c4 {[%emt 0:00:00]} g6 {[%emt 0:00:27]} 3. Nf3 {[%emt 0:00:00]} Bg7 {[%emt 0:00:17]} 4. g3 {[%emt 0:00:26]} O-O {[%emt 0:00:28]} 5. Bg2 {[%emt 0:00:03]} d5 {[%emt 0:00:32]} 6. cxd5 {[%emt 0:00:15]} Nxd5 {[%emt 0:00:29]} 7. O-O {[%emt 0:00:06]} Nb6 {[%emt 0:00:27]} 8. Nc3 {[%emt 0:00:26]} Nc6 {[%emt 0:00:28]} 9. e3 {[%emt 0:00:15]} Re8 {[%emt 0:00:25]} 10. Re1 {[%emt 0:07:34]} a5 {[%emt 0:01:00]} 11. h3 {[%emt 0:02:57]} a4 {[%emt 0:01:41]} 12. Kh2 {[%emt 0:15:17]} Ra5 {[%emt 0:02:31]} 13. Bd2 {[%emt 0:21:08]} e5 {[%emt 0:01:21]} 14. Ne4 {[%emt 0:04:17]} Ra8 {[%emt 0:15:13]} 15. dxe5 {[%emt 0:01:25]} Nc4 {[%emt 0:11:02]} 16. Bc3 {[%emt 0:03:07]} N6xe5 {[%emt 0:07:51]} 17. Nxe5 {[%emt 0:03:31]} Nxe5 {[%emt 0:00:10]} 18. Nc5 {[%emt 0:23:18]} Qxd1 {[%emt 0:10:51]} 19. Rexd1 {[%emt 0:00:22]} a3 {[%emt 0:00:19]} 20. bxa3 {[%emt 0:05:52]} Ng4+ {[%emt 0:15:57]} 21. hxg4 {[%emt 0:00:05]} Bxc3 {[%emt 0:00:04]} 22. Rac1 {[%emt 0:00:40]} Bb2 {[%emt 0:01:33]} 23. Rc2 {[%emt 0:00:36]} Bxa3 {[%emt 0:01:06]} 24. Nxb7 {[%emt 0:02:01]} Bxg4 {[%emt 0:01:16]} 25. Rd4 {[%emt 0:00:07]} Be6 {[%emt 0:07:39]} 26. Rxc7 {[%emt 0:00:23]} Bxa2 {[%emt 0:01:08]} 27. Rd2 {[%emt 0:05:05]} Be6 {[%emt 0:02:30]} 28. Nc5 {[%emt 0:01:59]} Rad8 {[%emt 0:00:29]} 29. Rxd8 {[%emt 0:00:07]} Rxd8 {[%emt 0:00:01]} 30. Nxe6 {[%emt 0:00:16]} fxe6 {[%emt 0:00:02]} 31. Bh3 {[%emt 0:00:20]} e5 {[%emt 0:01:15]} 32. Be6+ {[%emt 0:00:37]} Kh8 {[%emt 0:00:15]} 33. g4 {[%emt 0:01:56]} Re8 {[%emt 0:04:35]} 34. Bd5 {[%emt 0:00:32]} Re7 {[%emt 0:00:33]} 35. Rc8+ {[%emt 0:00:15]} Kg7 {[%emt 0:00:06]} 36. g5 {[%emt 0:00:21]} h6 {[%emt 0:00:27]} 37. Rg8+ {[%emt 0:01:10]} Kh7 {[%emt 0:00:06]} 38. gxh6 {[%emt 0:00:53]} Kxh6 {[%emt 0:00:15]} 39. Kg3 {[%emt 0:01:01]} Kg5 {[%emt 0:02:52]} 40. Be4 {[%emt 0:00:00]} Re6 {[%emt 0:00:00]} 41. Ra8 {[%emt 0:01:10]} Bb4 {[%emt 0:02:13]} 42. Ra4 {[%emt 0:01:00]} 1/2-1/2

[Event "69th RUS-ch Women Higher League 2019"]
[Site "Yaroslavl"]
[Date "2019.07.01"]
[Round "5.23"]
[White "Dzutseva, Lana"]
[Black "Mokshanova, Elizaveta"]
[Result "0-1"]
[ECO "A65"]
[WhiteElo "1325"]
[BlackElo "2020"]
[Annotator "NA"]
[PlyCount "84"]
[EventDate "2019.06.27"]
[EventType "swiss"]
[EventCountry "RUS"]
[SourceTitle "playchess.com"]
[Source "ChessBase"]
[SourceQuality "1"]
[TimeControl "40/5400+30:1800+30"]

1. d4 {[%emt 0:00:00]} Nf6 {[%emt 0:00:00]} 2. c4 {[%emt 0:00:00]} c5 {[%emt 0:00:00]} 3. d5 {[%emt 0:00:00]} e6 {[%emt 0:00:00]} 4. Nc3 {[%emt 0:00:00]} exd5 {[%emt 0:00:00]} 5. cxd5 {[%emt 0:00:00]} d6 {[%emt 0:00:00]} 6. e4 {[%emt 0:00:00]} g6 {[%emt 0:00:07]} 7. h3 {[%emt 0:00:00]} Bg7 {[%emt 0:00:05]} 8. Bd3 {[%emt 0:00:15]} O-O {[%emt 0:00:31]} 9. Nf3 {[%emt 0:00:10]} a6 {[%emt 0:01:17]} 10. a4 {[%emt 0:00:06]} Re8 {[%emt 0:03:37]} 11. O-O {[%emt 0:00:56]} Nfd7 {[%emt 0:06:52]} 12. Bg5 {[%emt 0:33:52]} Qb6 {[%emt 0:05:32]} 13. Qd2 {[%emt 0:07:20]} Ne5 {[%emt 0:00:47]} 14. Nxe5 {[%emt 0:00:49]} Bxe5 {[%emt 0:00:14]} 15. f4 {[%emt 0:00:50]} Bg7 {[%emt 0:10:30]} 16. Kh1 {[%emt 0:04:11]} Nd7 {[%emt 0:03:20]} 17. Rf2 {[%emt 0:28:25]} h6 {[%emt 0:04:46]} 18. Bh4 {[%emt 0:01:19]} Qc7 {[%emt 0:00:10]} 19. Raf1 {[%emt 0:10:17]} Rb8 {[%emt 0:09:29]} 20. e5 {[%emt 0:06:02]} dxe5 {[%emt 0:01:19]} 21. fxe5 {[%emt 0:00:50]} Nxe5 {[%emt 0:01:12]} 22. Bg3 {[%emt 0:00:34]} f5 {[%emt 0:12:16]} 23. Bf4 {[%emt 0:03:00]} Bd7 {[%emt 0:02:26]} 24. Bc2 {[%emt 0:00:48]} Qb6 {[%emt 0:01:12]} 25. Bxh6 {[%emt 0:01:26]} Nc4 {[%emt 0:01:40]} 26. Qg5 {[%emt 0:00:37]} Ne3 {[%emt 0:03:16]} 27. Re1 {[%emt 0:01:03]} Nxc2 {[%emt 0:01:44]} 28. Rxe8+ {[%emt 0:00:27]} Rxe8 {[%emt 0:00:05]} 29. Rxc2 {[%emt 0:00:06]} Re1+ {[%emt 0:13:51]} 30. Kh2 {[%emt 0:00:06]} Qf6 {[%emt 0:00:24]} 31. Qxf6 {[%emt 0:00:41]} Bxf6 {[%emt 0:00:05]} 32. Bf4 {[%emt 0:00:48]} b5 {[%emt 0:01:12]} 33. axb5 {[%emt 0:00:13]} axb5 {[%emt 0:00:03]} 34. Kg3 {[%emt 0:01:13]} c4 {[%emt 0:00:53]} 35. Kf2 {[%emt 0:00:14]} Ra1 {[%emt 0:00:39]} 36. Ne2 {[%emt 0:00:36]} Ra2 {[%emt 0:00:07]} 37. Bc1 {[%emt 0:00:21]} Kf7 {[%emt 0:00:53]} 38. Ke1 {[%emt 0:00:49]} Ke7 {[%emt 0:00:06]} 39. Kd2 {[%emt 0:00:08]} Kd6 {[%emt 0:00:13]} 40. Nc3 {[%emt 0:00:00]} Ra1 {[%emt 0:00:00]} 41. Ke2 {[%emt 0:17:09]} b4 {[%emt 0:01:57]} 42. Nd1 {[%emt 0:00:53]} Ba4 {[%emt 0:00:24]} 0-1

[Event "69th RUS-ch Women Higher League 2019"]
[Site "Yaroslavl"]
[Date "2019.07.01"]
[Round "5.24"]
[White "Matveeva, Olga"]
[Black "Filippova, Darya"]
[Result "1-0"]
[ECO "D31"]
[WhiteElo "2189"]
[BlackElo "2174"]
[Annotator "NA"]
[PlyCount "101"]
[EventDate "2019.06.27"]
[EventType "swiss"]
[EventCountry "RUS"]
[SourceTitle "playchess.com"]
[Source "ChessBase"]
[SourceQuality "1"]
[TimeControl "40/5400+30:1800+30"]

1. d4 {[%emt 0:00:00]} d5 {[%emt 0:00:00]} 2. c4 {[%emt 0:00:00]} e6 {[%emt 0:00:01]} 3. Nc3 {[%emt 0:00:00]} c6 {[%emt 0:00:19]} 4. e4 {[%emt 0:00:58]} dxe4 {[%emt 0:00:19]} 5. Nxe4 {[%emt 0:00:04]} Nf6 {[%emt 0:00:19]} 6. Nxf6+ {[%emt 0:00:38]} Qxf6 {[%emt 0:00:11]} 7. Nf3 {[%emt 0:00:14]} Bb4+ {[%emt 0:00:19]} 8. Bd2 {[%emt 0:00:27]} Bxd2+ {[%emt 0:00:21]} 9. Qxd2 {[%emt 0:00:06]} Nd7 {[%emt 0:00:22]} 10. Qe3 {[%emt 0:01:31]} b6 {[%emt 0:18:05]} 11. Be2 {[%emt 0:11:43]} c5 {[%emt 0:05:13]} 12. O-O {[%emt 0:04:00]} O-O {[%emt 0:01:28]} 13. Rad1 {[%emt 0:12:19]} Bb7 {[%emt 0:05:43]} 14. dxc5 {[%emt 0:01:53]} Nxc5 {[%emt 0:00:24]} 15. b4 {[%emt 0:01:09]} Na4 {[%emt 0:03:22]} 16. Rd7 {[%emt 0:06:56]} Bc6 {[%emt 0:01:16]} 17. Rd6 {[%emt 0:00:37]} Rfc8 {[%emt 0:01:42]} 18. Ne5 {[%emt 0:04:19]} Be8 {[%emt 0:03:31]} 19. Bf3 {[%emt 0:04:27]} Rab8 {[%emt 0:00:22]} 20. h3 Rc7 {[%emt 0:03:38]} 21. Rfd1 {[%emt 0:07:22]} Rbc8 {[%emt 0:01:07]} 22. R1d4 {[%emt 0:03:06]} h6 {[%emt 0:03:12]} 23. Bd1 Qe7 {[%emt 0:11:23]} 24. Bb3 {[%emt 0:12:00]} Kh8 {[%emt 0:02:07]} 25. f4 {[%emt 0:01:57]} a5 {[%emt 0:03:27]} 26. a3 {[%emt 0:00:47]} axb4 {[%emt 0:00:32]} 27. axb4 {[%emt 0:00:04]} b5 {[%emt 0:00:43]} 28. c5 {[%emt 0:00:35]} Ra8 {[%emt 0:03:28]} 29. Qd2 {[%emt 0:01:54]} Rcc8 {[%emt 0:02:13]} 30. Kh2 {[%emt 0:00:51]} Qf6 {[%emt 0:01:45]} 31. Bd1 {[%emt 0:05:08]} g5 {[%emt 0:01:15]} 32. Nf3 {[%emt 0:03:34]} gxf4 {[%emt 0:02:33]} 33. Bc2 {[%emt 0:02:31]} Bc6 {[%emt 0:02:46]} 34. Rxf4 {[%emt 0:01:10]} Qc3 {[%emt 0:01:04]} 35. Rxf7 {[%emt 0:01:15]} Qxd2 {[%emt 0:00:19]} 36. Nxd2 {[%emt 0:02:34]} Bd5 {[%emt 0:00:53]} 37. Ne4 {[%emt 0:06:04]} Rf8 {[%emt 0:00:50]} 38. Rdd7 {[%emt 0:00:46]} Rxf7 {[%emt 0:00:26]} 39. Rxf7 {[%emt 0:00:04]} Kg8 {[%emt 0:00:32]} 40. Rd7 {[%emt 0:00:00]} Rf8 {[%emt 0:00:00]} 41. Kg3 Rf1 {[%emt 0:01:39]} 42. Bd3 {[%emt 0:05:10]} Rf5 {[%emt 0:01:27]} 43. Bxb5 {[%emt 0:07:49]} Nb2 {[%emt 0:00:16]} 44. Nf2 {[%emt 0:03:33]} h5 {[%emt 0:00:38]} 45. h4 {[%emt 0:00:23]} Rf6 {[%emt 0:00:30]} 46. Nh3 {[%emt 0:01:04]} Nd1 {[%emt 0:00:14]} 47. c6 {[%emt 0:02:25]} Nc3 {[%emt 0:00:16]} 48. c7 {[%emt 0:01:07]} Bb7 {[%emt 0:00:10]} 49. Rd8+ {[%emt 0:01:23]} Kg7 {[%emt 0:00:16]} 50. Bc6 {[%emt 0:01:25]} Rg6+ {[%emt 0:00:39]} 51. Ng5 {[%emt 0:00:27]} 1-0